Workbook

Sheet Tjek
C1: Satser pr. 1-3-2013 til 1-3-2020 | I1: Slet indtastninger: <Ctrl>+q | AA1: 2013-03-01
B2: =VLOOKUP(C9,C60:E63,2,FALSE) ->  | C2: LØNTJEK | I2: OVERENSKOMST: DEA / Pleje og omsorg | AA2: 2013-04-01
AA3: 2013-05-01
B4: =C17 -> 0 | AA4: 2013-06-01
C5: Måned, lønseddel | I5: Grundløn: | AA5: 2013-07-01
C6: 2020-02-01 | I6: Grundløn | K6: =IFERROR(VLOOKUP(stilling,grundløn,VLOOKUP(C6,kolonne_nr,2,TRUE)+3,FALSE)/fuldtidsnorm*timetal,0) -> 0 | AA6: 2013-08-01
C7: =IF(C6<>"",DATE(YEAR(C6),MONTH(C6)-1,DAY(C6)),"") -> 2020-01-01 | I7: Ajourføringstillæg | K7: =IFERROR((VLOOKUP(1,ajour,VLOOKUP(C6,kolonne_nr,2,TRUE)+2,FALSE))/fuldtidsnorm*$C$20,0) -> 0 | AA7: 2013-09-01
C8: Stilling: | I8: Gruppetillæg (geografi) | K8: =IFERROR(VLOOKUP(område,område_tillæg,VLOOKUP(C6,kolonne_nr,2,TRUE)+2,FALSE)/fuldtidsnorm*$C$20,0) -> 0 | AA8: 2013-10-01
AA9: 2013-11-01
I10: Tillæg: | AA10: 2013-12-01
I11: Kvalifikationsløn (års anciennitet) | K11: =IFERROR(IF(VLOOKUP(stilling,erfa_gruppe,2,FALSE)=1,VLOOKUP(J11,erfa_ikkeudd,VLOOKUP(C6,kolonne_nr,2,TRUE)+2,TRUE),VLOOKUP(J11,erfa_uddannet,VLOOKUP(C6,kolonne_nr,2,TRUE)+2,TRUE))/fuldtidsnorm*$C$20,0) -> 0 | AA11: 2014-01-01
AA12: 2014-02-01
I13: Funktionsløn, lokalt aftalt | K13: =J13 -> 0 | AA13: 2014-03-01
I14: Kvalifikationsløn, lokalt aftalt | K14: =J14 -> 0 | AA14: 2014-04-01
AA15: 2014-05-01
C16: Område/løngruppe (Bilag 1): | I16: Fast månedsløn | K16: =SUM(K6:K14) -> 0 | AA16: 2014-06-01
I17: Timeløn | K17: =IFERROR((K16/timetal*fuldtidsnorm)*12/1924,0) -> 0 | AA17: 2014-07-01
AA18: 2014-08-01
C19: Timetal (timer/uge jf. ansættelsesbrev): | I19: Særydelser: | AA19: 2014-09-01
I20: Merarbejde/udbetalt afsp. | K20: =K17*(CEILING(J20*2,1)/2) -> 0 | AA20: 2014-10-01
C21: ="(svarende til "&ROUND(timetal*52/12,2)&" timer/måned)" -> (svarende til 0 timer/måned) | I21: Overarbejde | K21: =K17*(1+50%)*(CEILING(J21*2,1)/2) -> 0 | AA21: 2014-11-01
AA22: 2014-12-01
I23: Timer; 18-07 | K23: =IFERROR(J23*VLOOKUP(3,særydelser,VLOOKUP(C7,kolonne_nr,2,TRUE)+2,FALSE),0) -> 0 | AA23: 2015-01-01
I24: Timer; lørdag/mandag | K24: =IFERROR((CEILING(J24*2,1)/2)*VLOOKUP(4,særydelser,VLOOKUP(C7,kolonne_nr,2,TRUE)+2,FALSE),0) -> 0 | AA24: 2015-02-01
I25: Timer; søn- og helligdag | K25: =IFERROR((CEILING(J25*2,1)/2)*(K17*VLOOKUP(5,særydelser,VLOOKUP(C7,kolonne_nr,2,TRUE)+2,FALSE)),0) -> 0 | AA25: 2015-03-01
AA26: 2015-04-01
I27: Omlagt tjeneste | K27: =IFERROR(J27*VLOOKUP(1,særydelser,VLOOKUP(C7,kolonne_nr,2,TRUE)+2,FALSE),0) -> 0 | AA27: 2015-05-01
AA28: 2015-06-01
I29: Inddraget fridøgn | K29: =IFERROR(J29*VLOOKUP(2,særydelser,VLOOKUP(C7,kolonne_nr,2,TRUE)+2,FALSE),0) -> 0 | AA29: 2015-07-01
AA30: 2015-08-01
I31: Rådighedsvagt fra bolig | K31: =IFERROR(J31*VLOOKUP(6,særydelser,VLOOKUP(C7,kolonne_nr,2,TRUE)+2,FALSE),0) -> 0 | AA31: 2015-09-01
AA32: 2015-10-01
I33: Standby vagt | K33: =IFERROR(J33*VLOOKUP(7,særydelser,VLOOKUP(C7,kolonne_nr,2,TRUE)+2,FALSE),0) -> 0 | AA33: 2015-11-01
AA34: 2015-12-01
I35: Beklædningsgodtg. (vask) | K35: =IF(G35<>"",VLOOKUP(8,særydelser,VLOOKUP(C6,kolonne_nr,2,TRUE)+2,FALSE)*timetal*52/12,0) -> 0 | AA35: 2016-01-01
I36: Beklædningsgodtg. (vask og tøj) | K36: =IF(G36<>"",VLOOKUP(9,særydelser,VLOOKUP(C6,kolonne_nr,2,TRUE)+2,FALSE)*timetal*52/12,0) -> 0 | AA36: 2016-02-01
AA37: 2016-03-01
I38: ferieberettiget løn | K38: =SUM(K20:K31,K35:K36,K16) -> 0 | AA38: 2016-04-01
AA39: 2016-05-01
I40: særlig opsparing | K40: =IFERROR(K38*VLOOKUP(1,Særlig_opsp,VLOOKUP(C6,kolonne_nr,2,TRUE)+2,FALSE),0) -> 0 | AA40: 2016-06-01
AA41: 2016-07-01
I42: pensionsgivende løn | K42: =K38+K40 -> 0 | AA42: 2016-08-01
AA43: 2016-09-01
I44: FALSE | J44: =IF(I44=TRUE,13.2%,"") ->  | K44: =IFERROR(J44*K42,"") ->  | AA44: 2016-10-01
I45: pensionsbidrag, medarbejder | J45: =IF(J44="","",J44/3) ->  | K45: =IFERROR(J45*$K$42,0) -> 0 | AA45: 2016-11-01
I46: pensionsbidrag, arbejdsgiver | J46: =IF(J44="","",J44/3*2) ->  | K46: =IFERROR(J46*$K$42,0) -> 0 | AA46: 2016-12-01
AA47: 2017-01-01
AA48: 2017-02-01
AA49: 2017-03-01
AA50: 2017-04-01
AA51: 2017-05-01
AA52: 2017-06-01
AA53: 2017-07-01
C54: 0 | AA54: 2017-08-01
C55: 1 | AA55: 2017-09-01
C56: 2 | AA56: 2017-10-01
C57: 3 | AA57: 2017-11-01
C58: 4 | AA58: 2017-12-01
AA59: 2018-01-01
C60: Ikke-uddannede, husassistenter, servicemedarb. | D60: 1 | AA60: 2018-02-01
C61: Hjemmehjælpere | D61: 2 | AA61: 2018-03-01
C62: Social- og sundhedshjælpere, sygehjælpere, beskæftigelsesvejl., sundhedsmedhjælper | D62: 3 | AA62: 2018-04-01
C63: Social- og sundhedsassistenter, plejehjemsass., plejere | D63: 4 | AA63: 2018-05-01
AA64: 2018-06-01
AA65: 2018-07-01
AA66: 2018-08-01
AA67: 2018-09-01
AA68: 2018-10-01
AA69: 2018-11-01
AA70: 2018-12-01
AA71: 2019-01-01
AA72: 2019-02-01
AA73: 2019-03-01
AA74: 2019-04-01
AA75: 2019-05-01
AA76: 2019-06-01
AA77: 2019-07-01
AA78: 2019-08-01
AA79: 2019-09-01
AA80: 2019-10-01
AA81: 2019-11-01
AA82: 2019-12-01
AA83: 2020-01-01
AA84: 2020-02-01

Sheet Omregnere
C2: minutter | D2: decimaltal
C3: 30 | D3: =C3/60 -> 0.5
C5: Timer pr. uge | D5: timer pr. måned
C6: 37 | D6: =ROUND(C6*52/12,2) -> 160.33
C8: lokalt tillæg reduceret | D8: timetal /uge el. måned | E8: lokalt tillæg fuldt
C9: 600 | D9: 18.5 | E9: =IF(D9>1924/52,ROUND(C9/D9*(1924/12),0),ROUND(C9/D9*37,0)) -> 1200

Sheet GL_Satser (hidden)
C1: §5, 1 | F1: §5, 2 | I1: §9 | K1: § 17, 5 | L1: § 17, 8 | M1: § 18, 1 | N1: § 18, 2 | O1: § 18, 3 | P1: § 19, 1 | Q1: §19, 1 | R1: §20 | X1: §26 | Y1: §25
A2: 1 | B2: 2 | C2: 3 | D2: 4 | E2: 5 | F2: 6 | G2: 7 | H2: 8 | I2: 9 | J2: 10 | K2: 11 | L2: 12 | M2: 13 | N2: 14 | O2: 15 | P2: 16 | Q2: 17 | R2: 18 | S2: 19 | T2: 20 | U2: 21 | V2: 22 | W2: 23 | X2: 24 | Y2: 25 | Z2: 26 | AA2: 27 | AB2: 28
B3: 1. marts 2013 | C3: Grundløn | F3: servicetill. | G3: anciennitet | H3: anciennitet | I3: særlig opsp. | K3: omlagte timer | L3: inddraget | P3: Rådighed | Q3: Rådighed | R3: standby | X3: Beklædningsgodtgørelse
L4: fridøgn | M4: 18-07 | N4: lø/ma | O4: sø/hell. | P4: bopæl | Q4: vagtvær. | X4: vask | Y4: vask og tøj
A5: 1 | B5: Ikke-uddannede, husass., servicemedarb | C5: 20211.01 | F5: 2.85 | I5: 0.01 | K5: 44.5 | L5: 368.6 | M5: 36.28 | N5: 29.31 | O5: 0.5 | P5: 34 | Q5: 0.75 | R5: 19.06 | X5: 0.87 | Y5: 2
A6: 2 | B6: Hjemmehjælpere | C6: 20716.11 | X6: 0.87 | Y6: 2
A7: 3 | B7: SSHJ, sygehj. m.fl. | C7: 21210.22 | X7: 0.87 | Y7: 2
A8: 4 | B8: SSA, plejehj.ass., plejere | C8: 22088.65 | X8: 0.87 | Y8: 2
A10: § 5, 3 | B10: Områdetillæg
A11: 0 | B11: 0 | D11: fuld tid, månedsnorm | J11: -> 30-04-2012 | K11: 43.28 | L11: 358.49 | M11: 35.29 | N11: 28.51 | O11: 0.5 | P11: 33.07 | Q11: 0.75 | R11: 18.54
A12: 1 | B12: 500 | D12: 37 | G12: 2012-03-01 | H12: 2013-03-01 | J12: 2012-05-01 | K12: 43.89 | L12: 363.51 | M12: 35.78 | N12: 28.91 | O12: 0.5 | P12: 33.53 | Q12: 0.75 | R12: 18.8
A13: 2 | B13: 500 | F13: Ikke-uddannede, husass., servicemedarb | G13: 19914.4 | H13: 20211.01 | J13: 2013-03-01 | K13: 44.5 | L13: 368.6 | M13: 36.28 | N13: 29.31 | O13: 0.5 | P13: 34 | Q13: 0.75 | R13: 19.06
A14: 3 | B14: 1000 | F14: Hjemmehjælpere | G14: 20419.5 | H14: 20716.11
A15: 4 | B15: 1000 | F15: SSHJ, sygehj. m.fl. | G15: 20913.61 | H15: 21210.22
F16: SSA, plejehj.ass., plejere | G16: 21792.04 | H16: 22088.65 | J16: 43.89
B17: Erfaringstillæg | J17: 363.51
A18: § 6, 1 | B18: 1 | C18: 2-4 | J18: 35.78
A19: 0 | B19: 0 | C19: 0 | J19: 28.91
A20: 1 | B20: 0 | C20: 0 | J20: 0.5
A21: 2 | B21: 946.75 | C21: 846.75 | J21: 33.53
A22: 3 | B22: 946.75 | C22: 846.75 | J22: 18.8
A23: 4 | B23: 946.75 | C23: 846.75
A24: 5 | B24: 946.75 | C24: 846.75
A25: 6 | B25: 1646.75 | C25: 1446.75
A26: 7 | B26: 1646.75 | C26: 1446.75
A27: 8 | B27: 1646.75 | C27: 1446.75
A30: § 16, 1 og 2 | B30: pension
B31: egetbidrag | C31: arbejdsgiverbidrag
A33: 0.132 | B33: 0.044 | C33: 0.088

Sheet Satser (hidden)
A1: fuld tid, månedsnorm | H1: 1 | I1: 2 | J1: 3 | K1: 4 | L1: 5 | M1: 6 | N1: 7 | O1: 8
A2: 37 | G2: 2012-03-01 | H2: 2013-03-01 | I2: 2014-03-01 | J2: 2015-03-01 | K2: 2016-03-01 | L2: 2017-03-01 | M2: 2018-03-01 | N2: 2019-03-01 | O2: 2020-03-01
D3: §5, 2 | E3: servicetill. | F3: 1 | H3: 2.85 | I3: 2.85 | J3: 2.85 | K3: 2.85 | L3: 2.85 | M3: 2.85 | N3: 2.85
E4: pr. md | F4: 1 | H4: =H3*1924/12 -> 456.95 | I4: =I3*1924/12 -> 456.95 | J4: 456.95 | K4: 456.95 | L4: =L3*1924/12 -> 456.95 | M4: 456.95 | N4: 456.95
D5: §9 | E5: Særlig opsp. | F5: 1 | H5: 0.01 | I5: 0.013 | J5: 0.017 | K5: 0.02 | L5: 0.027 | M5: 0.034 | N5: 0.04
A8: Kolonnenummer: | I8: 0.015 | J8: 0.016 | K8: 0.017
A9: 2012-03-01 | B9: 0 | D9: § 17, 5 | E9: omlagte timer | F9: 1 | G9: 43.89 | H9: 44.5 | I9: =H9*(1+I$8) -> 45.1675 | J9: =I9*(1+J$8) -> 45.89018 | K9: 46.67031306 | L9: 47.42 | M9: 48.18 | N9: 48.95
A10: 2013-03-01 | B10: 1 | D10: § 17, 8 | E10: inddraget fridøgn | F10: 2 | G10: 363.51 | H10: 368.6 | I10: =H10*(1+I$8) -> 374.129 | J10: 380.115064 | K10: 386.5770201 | L10: 392.77 | M10: 399.05 | N10: 405.43
A11: 2014-03-01 | B11: 2 | D11: § 18, 1 | E11: 18-07 | F11: 3 | G11: 35.78 | H11: 36.28 | I11: =H11*(1+I$8) -> 36.8242 | J11: 37.4133872 | K11: 38.04941478 | L11: 38.66 | M11: 39.28 | N11: 39.91
A12: 2015-03-01 | B12: 3 | D12: § 18, 2 | E12: lø/ma | F12: 4 | G12: 28.91 | H12: 29.31 | I12: =H12*(1+I$8) -> 29.74965 | J12: 30.2256444 | K12: 30.73948035 | L12: 31.23 | M12: 31.73 | N12: 32.24
A13: 2016-03-01 | B13: 4 | D13: § 18, 3 | E13: sø/hell. | F13: 5 | G13: 0.5 | H13: 0.5 | I13: 0.5 | J13: 0.5 | K13: 0.5 | L13: 0.5 | M13: 0.5 | N13: 0.5
A14: 2017-03-01 | B14: 5 | D14: § 19, 1 | E14: Rådighed, fra bopæl | F14: 6 | G14: 33.53 | H14: 34 | I14: 34.51 | J14: 35.06216 | K14: 35.65821672 | L14: 36.23 | M14: 36.81 | N14: 37.4
A15: 2018-03-01 | B15: 6 | D15: §20 | E15: Standby-vagt | F15: 7 | G15: 18.8 | H15: 19.06 | I15: 19.3459 | J15: 19.6554344 | K15: 19.98957678 | L15: 20.31 | M15: 20.63 | N15: 20.96
A16: 2019-03-01 | B16: 7 | D16: §26 | E16: Bekl.godtg./vask | F16: 8 | G16: 0.87 | H16: 0.87 | I16: 0.87 | J16: 0.87 | K16: 0.87 | L16: 0.87 | M16: 0.87 | N16: 0.87
D17: §25 | E17: Bekl.godtg./vask og tøj | F17: 9 | G17: 2 | H17: 2 | I17: 2 | J17: 2 | K17: 2 | L17: 2 | M17: 2 | N17: 2
D19: §5, 1 | E19: Grundløn | I19: 2.1 | J19: 2.25 | K19: 2.4 | L19: 2.5 | M19: 2.5 | N19: 2.5
E20: Ikke-uddannede, husassistenter, servicemedarb. | H20: 20211.01 | I20: =ROUND(H20+(I$19*1924/12),2) -> 20547.71 | J20: =ROUND(I20+(J$19*1924/12),2) -> 20908.46 | K20: 21,293,24 | L20: 21694.07 | M20: =ROUND(L20+(M$19*1924/12),2) -> 22094.9 | N20: =ROUND(M20+(N$19*1924/12),2) -> 22495.73
E21: Hjemmehjælpere | H21: 20716.11 | I21: =H21+(I$19*1924/12) -> 21052.81 | J21: 21413.56 | K21: 21,798,34 | L21: 22199.17 | M21: =ROUND(L21+(M$19*1924/12),2) -> 22600 | N21: 23000.83
E22: Social- og sundhedshjælpere, sygehjælpere, beskæftigelsesvejl., sundhedsmedhjælper | H22: 21210.22 | I22: =H22+(I$19*1924/12) -> 21546.92 | J22: 21907.67 | K22: 22292.47 | L22: 22693.28 | M22: =ROUND(L22+(M$19*1924/12),2) -> 23094.11 | N22: 23494.94
E23: Social- og sundhedsassistenter, plejehjemsass., plejere | H23: 22088.65 | I23: =H23+(I$19*1924/12) -> 22425.35 | J23: 22786.1 | K23: 23170.9 | L23: 23571.71 | M23: =ROUND(L23+(M$19*1924/12),2) -> 23972.54 | N23: 24373.37
D25: § 5, 3 | E25: Områdetillæg
F26: 0 | H26: 0 | I26: 0 | J26: 0 | K26: 0 | L26: 0 | M26: 0 | N26: 0
F27: 1 | H27: 500 | I27: 500 | J27: 500 | K27: 500 | L27: 500 | M27: 500 | N27: 500
F28: 2 | H28: 500 | I28: 500 | J28: 500 | K28: 500 | L28: 500 | M28: 500 | N28: 500
F29: 3 | H29: 1000 | I29: 1000 | J29: 1000 | K29: 1000 | L29: 1000 | M29: 1000 | N29: 1000
F30: 4 | H30: 1000 | I30: 1000 | J30: 1000 | K30: 1000 | L30: 1000 | M30: 1000 | N30: 1000
D32: § 6, 1 | E32: erfaringstillæg, ikke uddannede m.fl.
F33: 0 | H33: 0 | I33: 0 | J33: 0 | K33: 0 | L33: 0 | M33: 0 | N33: 0
F34: 1 | H34: 0 | I34: 0 | J34: 0 | K34: 0 | L34: 0 | M34: 0 | N34: 0
F35: 2 | H35: 946.75 | I35: 946.75 | J35: 946.75 | K35: 946.75 | L35: 946.75 | M35: 946.75 | N35: 946.75
F36: 3 | H36: 946.75 | I36: 946.75 | J36: 946.75 | K36: 946.75 | L36: 946.75 | M36: 946.75 | N36: 946.75
F37: 4 | H37: 946.75 | I37: 946.75 | J37: 946.75 | K37: 946.75 | L37: 946.75 | M37: 946.75 | N37: 946.75
F38: 5 | H38: 946.75 | I38: 946.75 | J38: 946.75 | K38: 946.75 | L38: 946.75 | M38: 946.75 | N38: 946.75
F39: 6 | H39: 1646.75 | I39: 1646.75 | J39: 1646.75 | K39: 1646.75 | L39: 1646.75 | M39: 1646.75 | N39: 1646.75
F40: 7 | H40: 1646.75 | I40: 1646.75 | J40: 1646.75 | K40: 1646.75 | L40: 1646.75 | M40: 1646.75 | N40: 1646.75
F41: 8 | H41: 1646.75 | I41: 1646.75 | J41: 1646.75 | K41: 1646.75 | L41: 1646.75 | M41: 1646.75 | N41: 1646.75
D43: § 6, 1 | E43: erfaringstillæg, øvrige
F44: 0 | H44: 0 | I44: 0 | J44: 0 | K44: 0 | L44: 0 | M44: 0 | N44: 0
F45: 1 | H45: 0 | I45: 0 | J45: 0 | K45: 0 | L45: 0 | M45: 0 | N45: 0
F46: 2 | H46: 846.75 | I46: 846.75 | J46: 846.75 | K46: 846.75 | L46: 846.75 | M46: 846.75 | N46: 846.75
F47: 3 | H47: 846.75 | I47: 846.75 | J47: 846.75 | K47: 846.75 | L47: 846.75 | M47: 846.75 | N47: 846.75
F48: 4 | H48: 846.75 | I48: 846.75 | J48: 846.75 | K48: 846.75 | L48: 846.75 | M48: 846.75 | N48: 846.75
F49: 5 | H49: 846.75 | I49: 846.75 | J49: 846.75 | K49: 846.75 | L49: 846.75 | M49: 846.75 | N49: 846.75
F50: 6 | H50: 1446.75 | I50: 1446.75 | J50: 1446.75 | K50: 1446.75 | L50: 1446.75 | M50: 1446.75 | N50: 1446.75
F51: 7 | H51: 1446.75 | I51: 1446.75 | J51: 1446.75 | K51: 1446.75 | L51: 1446.75 | M51: 1446.75 | N51: 1446.75
F52: 8 | H52: 1446.75 | I52: 1446.75 | J52: 1446.75 | K52: 1446.75 | L52: 1446.75 | M52: 1446.75 | N52: 1446.75
E57: Ikke-uddannede, husassistenter, servicemedarb. | F57: 1
E58: Hjemmehjælpere | F58: 2
E59: Social- og sundhedshjælpere, sygehjælpere, beskæftigelsesvejl., sundhedsmedhjælper | F59: 2
E60: Social- og sundhedsassistenter, plejehjemsass., plejere | F60: 2

Sheet kommuner_afd (hidden)
A1: k.nr. | B1: k.navn | C1: løngruppe | H1: Liste, stillinger
A2: 165 | B2: Albertslund | C2: 4 | E2: 165 | F2: 1 | H2: Ikke-uddannede, husass., servicemedarb | I2: 1
A3: 201 | B3: Allerød | C3: 3 | E3: 201 | F3: 1 | H3: Hjemmehjælpere | I3: 2
A4: 420 | B4: Assens | C4: 0 | E4: 420 | F4: 3 | H4: SSHJ, sygehj. m.fl. | I4: 3
A5: 151 | B5: Ballerup | C5: 4 | E5: 151 | F5: 1 | H5: SSA, plejehj.ass., plejere | I5: 4
A6: 530 | B6: Billund | C6: 0 | E6: 530 | F6: 3
A7: 400 | B7: Bornholm | C7: 0 | E7: 400 | F7: 1
A8: 153 | B8: Brøndby | C8: 4 | E8: 153 | F8: 1
A9: 810 | B9: Brønderslev-Dronninglund | C9: 0 | E9: 810 | F9: 5
A10: 155 | B10: Dragør | C10: 4 | E10: 155 | F10: 1
A11: 240 | B11: Egedal | C11: 4 | E11: 240 | F11: 1
A12: 561 | B12: Esbjerg | C12: 1 | E12: 561 | F12: 3
A13: 563 | B13: Fanø | C13: 0 | E13: 563 | F13: 3
A14: 710 | B14: Favrskov | C14: 0 | E14: 710 | F14: 4
A15: 320 | B15: Faxe | C15: 0 | E15: 320 | F15: 2
A16: 210 | B16: Fredensborg | C16: 3 | E16: 210 | F16: 1
A17: 607 | B17: Fredericia | C17: 0 | E17: 607 | F17: 3
A18: 147 | B18: Frederiksberg | C18: 4 | E18: 147 | F18: 1
A19: 813 | B19: Frederikshavn | C19: 1 | E19: 813 | F19: 5
A20: 250 | B20: Frederikssund | C20: 3 | E20: 250 | F20: 1
A21: 190 | B21: Furesø | C21: 4 | E21: 190 | F21: 1
A22: 430 | B22: Faaborg-Midtfyn | C22: 1 | E22: 430 | F22: 3
A23: 157 | B23: Gentofte | C23: 4 | E23: 157 | F23: 1
A24: 159 | B24: Gladsaxe | C24: 4 | E24: 159 | F24: 1
A25: 161 | B25: Glostrup | C25: 4 | E25: 161 | F25: 1
A26: 253 | B26: Greve | C26: 4 | E26: 253 | F26: 2
A27: 270 | B27: Gribskov | C27: 3 | E27: 270 | F27: 1
A28: 376 | B28: Guldborgsund | C28: 0 | E28: 376 | F28: 2
A29: 510 | B29: Haderslev | C29: 0 | E29: 510 | F29: 3
A30: 260 | B30: Halsnæs | C30: 3 | E30: 260 | F30: 1
A31: 766 | B31: Hedensted | C31: 0 | E31: 766 | F31: 4
A32: 217 | B32: Helsingør | C32: 3 | E32: 217 | F32: 1
A33: 163 | B33: Herlev | C33: 4 | E33: 163 | F33: 1
A34: 657 | B34: Herning | C34: 0 | E34: 657 | F34: 4
A35: 219 | B35: Hillerød | C35: 3 | E35: 219 | F35: 1
A36: 860 | B36: Hjørring | C36: 0 | E36: 860 | F36: 5
A37: 316 | B37: Holbæk | C37: 0 | E37: 316 | F37: 2
A38: 661 | B38: Holstebro | C38: 0 | E38: 661 | F38: 4
A39: 615 | B39: Horsens | C39: 0 | E39: 615 | F39: 4
A40: 167 | B40: Hvidovre | C40: 4 | E40: 167 | F40: 1
A41: 169 | B41: Høje-Taastrup | C41: 4 | E41: 169 | F41: 1
A42: 223 | B42: Hørsholm | C42: 3 | E42: 223 | F42: 1
A43: 756 | B43: Ikast-Brande | C43: 0 | E43: 756 | F43: 4
A44: 183 | B44: Ishøj | C44: 4 | E44: 183 | F44: 1
A45: 849 | B45: Jammerbugt | C45: 0 | E45: 849 | F45: 5
A46: 326 | B46: Kalundborg | C46: 1 | E46: 326 | F46: 2
A47: 440 | B47: Kerteminde | C47: 1 | E47: 440 | F47: 3
A48: 621 | B48: Kolding | C48: 0 | E48: 621 | F48: 3
A49: 101 | B49: København | C49: 4 | E49: 101 | F49: 1
A50: 259 | B50: Køge | C50: 2 | E50: 259 | F50: 2
A51: 482 | B51: Langeland | C51: 0 | E51: 482 | F51: 3
A52: 350 | B52: Lejre | C52: 2 | E52: 350 | F52: 2
A53: 665 | B53: Lemvig | C53: 0 | E53: 665 | F53: 4
A54: 360 | B54: Lolland | C54: 0 | E54: 360 | F54: 2
A55: 173 | B55: Lyngby-Taarbæk | C55: 4 | E55: 173 | F55: 1
A56: 825 | B56: Læsø | C56: 0 | E56: 825 | F56: 5
A57: 846 | B57: Mariagerfjord | C57: 0 | E57: 846 | F57: 5
A58: 410 | B58: Middelfart | C58: 0 | E58: 410 | F58: 3
A59: 773 | B59: Morsø | C59: 0 | E59: 773 | F59: 5
A60: 707 | B60: Norddjurs | C60: 0 | E60: 707 | F60: 4
A61: 480 | B61: Nordfyn | C61: 0 | E61: 480 | F61: 3
A62: 450 | B62: Nyborg | C62: 1 | E62: 450 | F62: 3
A63: 370 | B63: Næstved | C63: 1 | E63: 370 | F63: 2
A64: 727 | B64: Odder | C64: 0 | E64: 727 | F64: 4
A65: 461 | B65: Odense | C65: 1 | E65: 461 | F65: 3
A66: 306 | B66: Odsherred | C66: 0 | E66: 306 | F66: 2
A67: 730 | B67: Randers | C67: 0 | E67: 730 | F67: 4
A68: 840 | B68: Rebild | C68: 0 | E68: 840 | F68: 5
A69: 760 | B69: Ringkøbing-Skjern | C69: 0 | E69: 760 | F69: 4
A70: 329 | B70: Ringsted | C70: 0 | E70: 329 | F70: 2
A71: 265 | B71: Roskilde | C71: 2 | E71: 265 | F71: 2
A72: 230 | B72: Rudersdal | C72: 4 | E72: 230 | F72: 1
A73: 175 | B73: Rødovre | C73: 4 | E73: 175 | F73: 1
A74: 741 | B74: Samsø | C74: 0 | E74: 741 | F74: 4
A75: 740 | B75: Silkeborg | C75: 0 | E75: 740 | F75: 4
A76: 746 | B76: Skanderborg | C76: 1 | E76: 746 | F76: 4
A77: 779 | B77: Skive | C77: 0 | E77: 779 | F77: 4
A78: 330 | B78: Slagelse | C78: 1 | E78: 330 | F78: 2
A79: 269 | B79: Solrød | C79: 2 | E79: 269 | F79: 2
A80: 340 | B80: Sorø | C80: 0 | E80: 340 | F80: 2
A81: 336 | B81: Stevns | C81: 0 | E81: 336 | F81: 2
A82: 671 | B82: Struer | C82: 0 | E82: 671 | F82: 4
A83: 479 | B83: Svendborg | C83: 0 | E83: 479 | F83: 3
A84: 706 | B84: Syddjurs | C84: 0 | E84: 706 | F84: 4
A85: 540 | B85: Sønderborg | C85: 1 | E85: 540 | F85: 3
A86: 787 | B86: Thisted | C86: 0 | E86: 787 | F86: 5
A87: 550 | B87: Tønder | C87: 0 | E87: 550 | F87: 3
A88: 185 | B88: Tårnby | C88: 4 | E88: 185 | F88: 1
A89: 187 | B89: Vallensbæk | C89: 4 | E89: 187 | F89: 1
A90: 573 | B90: Varde | C90: 0 | E90: 573 | F90: 3
A91: 575 | B91: Vejen | C91: 0 | E91: 575 | F91: 3
A92: 630 | B92: Vejle | C92: 0 | E92: 630 | F92: 3
A93: 820 | B93: Vesthimmerland | C93: 0 | E93: 820 | F93: 5
A94: 791 | B94: Viborg | C94: 0 | E94: 791 | F94: 4
A95: 390 | B95: Vordingborg | C95: 0 | E95: 390 | F95: 2
A96: 492 | B96: Ærø | C96: 0 | E96: 492 | F96: 3
A97: 580 | B97: Aabenraa | C97: 0 | E97: 580 | F97: 3
A98: 851 | B98: Ålborg | C98: 1 | E98: 851 | F98: 5
A99: 751 | B99: Århus | C99: 2 | E99: 751 | F99: 4

Sheet regnemaskine (hidden)
P1: Social- og sundhedshjælper, Geografi: Gribskov Kommune
C3: Timer/uge | E3: 28 | I3: Timer/uge | K3: 31 | P3: Timer/uge | U3: Satser:
C4: Timetal (faste timer pr. måned) | E4: 121.333 | I4: Timetal (faste timer pr. måned) | K4: 134.3433 | P4: Timetal (faste timer pr. måned)
Q5: (input) | R5: (beregninger)
C6: grundløn | E6: 15918.56167 | I6: grundløn | K6: 17625.47787 | P6: grundløn | T6: § 5a, 1
C7: servicetillæg | E7: 382.1913825 | I7: servicetillæg | K7: 423.173016 | P7: gruppetillæg | T7: § 5a, 2
C8: gruppetillæg | E8: 812.7545239 | I8: gruppetillæg | K8: 449.9523 | P8: servicetillæg | T8: § 5b
C9: K-løn, ok (års anciennitet) | D9: 7 | E9: 1029.74636 | I9: K-løn, ok (års anciennitet) | J9: 1 | K9: 0 | P9: K-løn, ok (års anciennitet) | T9: § 7, 1
A10: * | C10: K-løn, lokalt aftalt | D10: 3450 | E10: 2610.803638 | I10: K-løn, lokalt aftalt | K10: 0 | N10: * | P10: K-løn, lokalt aftalt | T10: § 7, 2
A11: * | C11: K-løn, lokalt aftalt | E11: 0 | I11: K-løn, lokalt aftalt | K11: 0 | N11: * | P11: K-løn, lokalt aftalt | T11: § 7, 2
A12: * | B12: u | C12: F-løn, lokalt aftalt | D12: 500 | E12: 500 | I12: F-løn, lokalt aftalt | K12: 0 | N12: * | O12: u | P12: F-løn, lokalt aftalt | T12: § 6
A13: * | C13: F-løn, lokalt aftalt | E13: 0 | I13: F-løn, lokalt aftalt | K13: 0 | N13: * | P13: F-løn, lokalt aftalt | T13: § 6
C14: * 'u'; uden reduktion ved deltid | I14: fast månedsløn | K14: 18498.60319 | P14: * 'u'; uden reduktion ved deltid
C15: fast månedsløn | E15: 21254.05758 | I15: timeløn | K15: 137.6965073 | P15: fast månedsløn
C16: timeløn | E16: 175.1712855 | P16: timeløn
I17: merarbejde/udbetalt afsp. | K17: 0
C18: merarbejde/udbetalt afsp. | D18: 18 | E18: 3153.083138 | I18: overarbejde | K18: 0 | P18: merarbejde/udbetalt afsp. | T18: § 21, 3
C19: overarbejde | E19: 0 | P19: overarbejde | T19: § 21, 1-2
I20: timer; 18-07 | K20: 0
C21: timer; 18-07 | D21: 152 | E21: 3863.84 | I21: timer; lørdag/mandag | J21: 4 | K21: 118.68 | P21: timer; 18-07 | T21: § 18, 1
C22: timer; lørdag/mandag | D22: 24 | E22: 712.08 | I22: timer; søn- og helligdag | J22: 8 | K22: 550.7860291 | P22: timer; lørdag/mandag | T22: § 18, 2
C23: timer; søn- og helligdag | D23: 40 | E23: 3503.425709 | P23: timer; søn- og helligdag | T23: § 18, 3
I24: 3/37 udbetalt | K24: 0
C25: 3/37 udbetalt | D25: 152 | E25: 2158.867734 | I25: Omlagt tjeneste | K25: 0 | P25: 3/37 udbetalt | T25: § 18, 5
C27: Omlagt tjeneste | E27: 0 | I27: Rådighedsvagt (bolig) | K27: 0 | P27: Omlagt tjeneste | T27: § 17, 5
I28: Rådighedsvagt (vagtværelse)
C29: Rådighedsvagt (bolig) | E29: 0 | P29: Rådighedsvagt (bolig) | T29: § 19, 1
C30: Rådighedsvagt (vagtværelse) | P30: Rådighedsvagt (vagtværelse) | T30: § 19, 1
I31: Beklædningsgodtg. (vask) | K31: 0
C32: Beklædningsgodtg. (vask) | E32: 0 | P32: Beklædningsgodtg. (vask) | T32: § 25
C33: Beklædningsgodtg. (vask og tøj) | E33: 0 | I33: ferieberettiget løn | K33: 19168.06922 | P33: Beklædningsgodtg. (vask og tøj) | T33: § 25
C35: ferieberettiget løn | E35: 34645.35416 | I35: særlig opsparing | K35: 191.6806922 | P35: ferieberettiget løn | T35: § 27
C37: særlig opsparing | E37: 346.4535416 | I37: pensionsgivende løn | K37: 19359.74991 | P37: særlig opsparing
C39: pensionsgivende løn | E39: 34991.8077 | I39: pensionsprocent | J39: 0.132 | K39: 2555.486988 | P39: pensionsgivende løn | T39: § 16, 1-3
I40: pensionsbidrag, medarbejder | J40: 0.044 | K40: 851.8289959
C41: pensionsprocent | D41: 0.132 | E41: 4618.918617 | I41: pensionsbidrag, arbejdsgiver | J41: 0.0895 | K41: 1732.697617 | P41: pensionsprocent | T41: § 16, 1-3
C42: pensionsbidrag, medarbejder | D42: 0.044 | E42: 1539.639539 | P42: pensionsbidrag, medarbejder | T42: § 16, 1-3
C43: pensionsbidrag, arbejdsgiver | D43: 0.0895 | E43: 3131.766789 | P43: pensionsbidrag, arbejdsgiver | T43: § 16, 1-3
